[Event "FIDE Womens Grand Prix-I 2022-23"]
[Site "Nur-Sultan"]
[Date "2022.09.20"]
[Round "3.1"]
[White "Lagno, Kateryna"]
[Black "Shuvalova, Polina"]
[Result "1-0"]
[ECO "C88"]
[WhiteElo "2547"]
[BlackElo "2510"]
[Annotator "TA"]
[PlyCount "101"]
[EventDate "2022.09.15"]
[EventType "tourn"]
[EventCountry "KAZ"]
[SourceTitle "playchess.com"]
[Source "ChessBase"]
[SourceQuality "1"]
[TimeControl "40/5400+30:1800+30"]

{[%evp 16,101,37,4,34,10,0,5,7,8,4,0,19,15,20,18,18,21,14,15,14,14,11,15,11,-2,12,0,62,69,60,53,137,131,130,150,145,137,138,118,170,161,161,163,321,319,394,374,331,312,364,241,254,241,244,221,257,242,280,283,270,236,280,229,233,162,168,171,173,148,171,189,302,302,294,293,359,335,408,302,537,504,618,618,1977,1834,5073,887]} 1. e4 {[%emt 0:00:03]} e5 {[%emt 0:00:05]} 2. Nf3 {[%emt 0:00:14]} Nc6 {[%emt 0:00:03]} 3. Bb5 {[%emt 0:00:12]} a6 {[%emt 0:00:06]} 4. Ba4 {[%emt 0:00:10]} Nf6 {[%emt 0:00:05]} 5. O-O {[%emt 0:00:21]} Be7 {[%emt 0:00:05]} 6. Re1 {[%emt 0:00:41]} b5 {[%emt 0:00:05]} 7. Bb3 {[%emt 0:00:03]} O-O {[%emt 0:00:05]} 8. a4 $1 {[%emt 0:00:21][%mdl 4] is recently more successful than 8.c3.} Rb8 {[%emt 0:00:22]} 9. c3 {[%emt 0:01:36] CPLX 2.3 33 (a4xb5) (=33)} d6 {[%emt 0:02:45] CPLX 2.3 30 (b5-b4) (=30). C88: Closed Ruy Lopez: Anti-Marshall Systems.} 10. d4 {[%emt 0:06:46] With the idea axb5. CPLX 2.4 24 (a4xb5) (=29)} b4 {[%emt 0:01:17] CPLX 2.9} 11. Nbd2 {[%emt 0:15:22] CPLX 2.9} bxc3 {[%emt 0:08:02] CPLX 2.8. The position is equal.} 12. bxc3 {[%emt 0:00:05] RECAPT} exd4 {[%emt 0:01:14] BESTDEEP} 13. cxd4 {[%emt 0:02:47] [#] RECAPT 4 (Nf3xd4) (=12)} Bg4 $146 {[%emt 0:01:02] CPLX 2.7 19 (d6-d5) (=10)} ({Predecessor:} 13... d5 14. e5 Nh5 15. Bc2 g6 16. Nb3 Ng7 17. h3 Re8 18. a5 Nb4 19. Bb1 Bd7 {½-½ (44) Kuhn,W (1956)-Rockel,J (1983) GER email 2012}) 14. h3 {[%emt 0:09:19] EASY} Bh5 {[%emt 0:00:32] CPLX 3.2} 15. Qc2 {[%emt 0:10:16] CPLX 3.0} Nb4 {[%emt 0:04:16] BESTDEEP} 16. Qc3 {[%emt 0:00:08] CPLX 3.1} Bg6 {[%emt 0:05:26] CPLX 3.0} 17. Ba3 {[%emt 0:21:25] CPLX 2.9} d5 $1 {[%emt 0:02:28][%cal Rf6e4] DEEPSTRONG} 18. e5 {[%emt 0:02:08] EASY} Ne4 {[%emt 0:05:20] CPLX 2.9} 19. Nxe4 {[%emt 0:00:47] EASY} Bxe4 {[%emt 0:02:14] RECAPT} 20. Nd2 {[%emt 0:04:41] CPLX 2.9 13 (Nf3-g5) (=6)} Bg6 {[%emt 0:15:49] CPLX 3.1 14 (Be4-f5) (=5)} 21. Nf3 {[%emt 0:07:53] CPLX 2.6 12 (f2-f4) (=7)} Nd3 {[%emt 0:19:45] RELBLUND 62 (Bg6-e4) (=10)} ({Better is} 21... Be4 $11) 22. Bxe7 $14 {[%emt 0:03:18] CPLX 3.4} Qxe7 {[%emt 0:00:08] RECAPT} 23. Re3 {[%emt 0:00:53] CPLX 3.1} Nf4 {[%emt 0:07:58] [#] White leaves nothing to chance now. CPLX 3.0 84 (Nd3-b4) (=14)} (23... Nb4 $14) 24. g3 $1 $16 {[%emt 0:02:47] DEEPSTRONG=>BLUNDERREACT} Nxh3+ {[%emt 0:03:27] EASY} 25. Kg2 {[%emt 0:00:02] CPLX 2.7} Ng5 {[%emt 0:00:44] BESTDEEP} 26. Nxg5 {[%emt 0:00:18] CPLX 3.1} (26. Bxd5 Rfd8 27. Bc6 Bf5 $16) 26... Qxg5 {[%emt 0:00:06] RECAPT} 27. Bxd5 {[%emt 0:00:14] EASY} Rbd8 {[%emt 0:06:49] CPLX 3.1 52 (Bg6-f5) (=14)} (27... Bf5 $16) 28. Bb7 {[%emt 0:01:42] CPLX 3.3 9 (Bd5-c4) (=5)} Qg4 {[%emt 0:03:13] CPLX 2.9} 29. d5 {[%emt 0:03:47] BESTDEEP} Rfe8 $2 {[%emt 0:06:43] CPLX 3.5 158 (Bg6-f5) (=20)} (29... Bf5 30. Rae1 Rb8) 30. Rae1 $18 {[%emt 0:00:20] BESTDEEP} Re7 {[%emt 0:03:03] CPLX 3.6 75 (Bg6-f5) (=22)} 31. Qc5 {[%emt 0:00:20] CPLX 3.6} Ree8 {[%emt 0:00:34] BESTDEEP} 32. Qxc7 {[%emt 0:01:44] CPLX 3.8 19 (a4-a5) (=5)} h5 {[%emt 0:00:17] CPLX 3.9 52 (Qg4xa4) (=23)} 33. Bc6 {[%emt 0:01:05] CPLX 4.2 123 (e5-e6) (=9)} ({Weaker is} 33. Bxa6 Rxd5 34. Bc4 Rc8 35. Qxc8+ Qxc8 $18) 33... Rf8 {[%emt 0:00:58] BESTDEEP=>BLUNDERREACT} 34. Qe7 {[%emt 0:00:30] CPLX 3.9 13 (d5-d6) (=10)} Qc4 {[%emt 0:00:41] CPLX 4.2} 35. Qh4 {[%emt 0:00:43] BESTDEEP} Qc2 {[%emt 0:00:27] CPLX 3.6 36 (Qc4xh4) (=22)} 36. Qf4 {[%emt 0:02:07] CPLX 3.5} Rb8 {[%emt 0:00:21] CPLX 3.3 38 (Rd8-c8) (=22)} 37. R3e2 {[%emt 0:00:22] CPLX 3.3} Qc3 {[%emt 0:01:25] CPLX 3.3 0 (Qc2-f5) (=21)} 38. Qe3 {[%emt 0:00:23] CPLX 3.3 34 (Re1-c1) (=9)} Bd3 {[%emt 0:00:45] CPLX 3.4 44 (Rb8-b3) (=22)} 39. Rd2 {[%emt 0:01:42] CPLX 3.4 51 (Qe3-f3) (=11)} Rb3 {[%emt 0:00:07] EASY} 40. Red1 {[%emt 0:01:11] CPLX 3.3 71 (Kg2-g1) (=13)} Bc2 {[%emt 0:00:29] CPLX 3.3 6 (Bd3-f5) (=21)} 41. Qxc3 {[%emt 0:31:12] CPLX 3.9} Rxc3 {[%emt 0:01:09] RECAPT} 42. Re1 $36 {[%emt 0:00:00][%cal Bd1e1,Be1e2,Be2e3,Be3b3][%mdl 2080] Keeping Black busy. CPLX 2.6} Rd8 {[%emt 0:04:02] Prevents Bd7. CPLX 2.4 23 (Rf8-b8) (=20)} 43. Ree2 {[%emt 0:00:00] BESTDEEP} Bb3 {[%emt 0:04:21] CPLX 2.5 113 (Bc2-f5) (=23)} (43... Bf5 {was called for.} 44. Rb2 Rc5) 44. Re3 {[%emt 0:00:00] CPLX 2.4=>BLUNDERREACT} Rxc6 {[%emt 0:00:20] BESTDEEP} 45. Rxb3 {[%emt 0:00:00][%mdl 4096] Endgame KRR-KRR. BESTDEEP} ({Resist} 45. dxc6 $6 Rxd2 46. Rxb3 Rc2 $18) 45... Rc4 {[%emt 0:00:15] CPLX 2.2 66 (Rc6-c5) (=24)} 46. f4 {[%emt 0:00:00][%cal Bf2f4,Bf4f5][%mdl 32] BESTDEEP} h4 {[%emt 0:02:20] CPLX 2.1 73 (g7-g5) (=25)} 47. a5 {[%emt 0:00:00] CPLX 2.3 106 (d5-d6) (=13)} hxg3 $2 {[%emt 0:00:51] CPLX 2.3 235 (g7-g5) (=30)} (47... g5 48. d6 gxf4 49. gxh4 Rc5) 48. Kxg3 {[%emt 0:00:00] RECAPT. White is clearly winning.} g5 {[%emt 0:08:56] CPLX 2.0 114 (g7-g6) (=32)} 49. f5 {[%emt 0:00:00] [#] Threatens to win with Re3. BESTDEEP} ({Not} 49. fxg5 Re4 $16) 49... Kf8 {[%emt 0:03:09] BEVAL 400 (Rc4-e4) (=41)} 50. Re3 {[%emt 0:00:00] Inhibits Re4. BEVAL} Rdc8 {[%emt 0:05:53] BEVAL 400 (Rc4-c6) (=50)} 51. d6 {[%emt 0:00:00] Weighted Error Value: White=0.14 (very precise) /Black=0.35} 1-0

[Event "FIDE Womens Grand Prix-I 2022-23"]
[Site "Nur-Sultan"]
[Date "2022.09.20"]
[Round "3.2"]
[White "Kashlinskaya, Alina"]
[Black "Goryachkina, Aleksandra"]
[Result "0-1"]
[ECO "D16"]
[WhiteElo "2504"]
[BlackElo "2579"]
[Annotator "TA"]
[PlyCount "194"]
[EventDate "2022.09.15"]
[EventType "tourn"]
[EventCountry "KAZ"]
[SourceTitle "playchess.com"]
[Source "ChessBase"]
[SourceQuality "1"]
[TimeControl "40/5400+30:1800+30"]

{[%evp 33,194,-57,-41,-26,-4,-8,-11,-32,-12,-27,-30,-54,-32,-23,-25,-26,-8,-12,-9,-19,-15,-51,-48,-81,-60,-61,-45,-50,-48,-46,-35,-38,-33,-29,-38,-39,-14,-45,-25,-27,-21,-26,-13,-282,-280,-263,-272,-659,-643,-619,-605,-563,-359,-297,-221,-239,-203,-181,-167,-196,-175,-295,-301,-288,-300,-297,-300,-301,-301,-300,-293,-291,-289,-291,-291,-278,-276,-240,-176,-293,-293,-293,-293,-285,-273,-254,-256,-391,-335,-367,-450,-444,-444,-437,-429,-405,-418,-1557,-1510,-2054,-1527,-1578,-1545,-412,-129,-133,-144,-148,-187,-622,-467,-364,-333,-2384,-2043,-941,-395,-12366,-12366,-29971,-4784,-4212,-3376,-1861,-1083,-471,-457,-29966,-793,-29972,-29973,-29973,-29974,-29974,-29975,-29975,-29975,-29978,-29977,-29977,-29975,-29975,-29976,-29976,-29977,-29979,-29978,-29979,-29980,-29983,-29984,-29984,-29985,-29985,-29985,-29985,-29979,-29979,-29980,-29983,-29984,-29991,-29985]} 1. d4 {[%emt 0:00:04]} d5 {[%emt 0:00:11]} 2. c4 {[%emt 0:00:07]} c6 {[%emt 0:00:07]} 3. Nf3 {[%emt 0:00:08]} Nf6 {[%emt 0:00:07]} 4. Nc3 {[%emt 0:00:05]} dxc4 {[%emt 0:00:18]} 5. a4 {[%emt 0:00:05]} e6 {[%emt 0:00:24]} 6. e3 {[%emt 0:00:06]} c5 {[%emt 0:00:17]} 7. Bxc4 {[%emt 0:00:08]} cxd4 {[%emt 0:00:13]} 8. exd4 {[%emt 0:00:05]} Nc6 {[%emt 0:00:26]} 9. O-O {[%emt 0:00:11]} Be7 {[%emt 0:00:39]} 10. Qe2 {[%emt 0:00:13]} O-O {[%emt 0:00:22]} 11. Rd1 {[%emt 0:00:19]} Nb4 {[%emt 0:00:40]} 12. Bg5 {[%emt 0:00:20]} a5 {[%emt 0:03:15]} 13. Ne5 {[%emt 0:08:49]} Nfd5 {[%emt 0:02:27]} 14. Bxe7 {[%emt 0:15:29]} Qxe7 {[%emt 0:01:23]} 15. Ne4 {[%emt 0:10:03]} b6 {[%emt 0:09:06]} 16. Ra3 {[%emt 0:01:10]} Bb7 {[%emt 0:03:58]} 17. Rg3 {[%emt 0:08:35]} f6 {[%emt 0:06:19]} 18. Nd3 {[%emt 0:04:15]} Nxd3 {[%emt 0:03:18]} 19. Qxd3 {[%emt 0:00:34]} Rac8 {[%emt 0:01:41]} 20. Bb3 {[%emt 0:01:42]} Nb4 {[%emt 0:02:55]} 21. Qe2 {[%emt 0:04:38]} Bd5 {[%emt 0:01:26]} 22. Re1 {[%emt 0:03:39]} Bxb3 {[%emt 0:05:09]} 23. Rxb3 {[%emt 0:00:05]} Rfd8 {[%emt 0:02:56]} 24. Rc3 {[%emt 0:02:37]} Qd7 {[%emt 0:04:34]} 25. h3 {[%emt 0:05:15]} Nd5 {[%emt 0:08:45]} 26. Rxc8 {[%emt 0:00:43]} Rxc8 {[%emt 0:00:44]} 27. Ng3 {[%emt 0:04:38]} Rc6 {[%emt 0:01:56]} 28. Nh5 {[%emt 0:09:22]} Kf7 {[%emt 0:09:32]} 29. Ng3 {[%emt 0:04:18]} Qc8 {[%emt 0:06:24]} 30. Qh5+ {[%emt 0:01:33]} Kg8 {[%emt 0:00:24]} 31. Qg4 {[%emt 0:02:32]} Rc1 {[%emt 0:03:15]} 32. Rxc1 {[%emt 0:00:12]} Qxc1+ {[%emt 0:00:01]} 33. Kh2 {[%emt 0:00:05]} Qc6 {[%emt 0:00:34]} 34. Qe4 {[%emt 0:03:54]} g6 {[%emt 0:10:38]} 35. b3 {[%emt 0:01:03]} Kf7 {[%emt 0:00:42]} 36. Ne2 $1 {[%emt 0:03:32]} Ke7 {[%emt 0:04:11]} 37. g3 {[%emt 0:01:24]} Qc7 {[%emt 0:04:12]} 38. Qh4 $2 {[%emt 0:02:36][%mdl 8192]} (38. Qd3 $11 {and White has nothing to worry.}) 38... Qc2 $1 $19 {[%emt 0:01:29]} 39. Qg4 {[%emt 0:02:09]} (39. Qxh7+ Kd6 40. Ng1 Qxf2+ 41. Kh1 Qxg3 $19) 39... Nc3 {[%emt 0:03:04]} (39... Qxb3 40. Nf4 Nxf4 41. Qxf4 $17) 40. Qf3 $2 {[%emt 0:03:08]} (40. Nxc3 Qxf2+ 41. Kh1 Qe1+ 42. Kg2 Qxc3 43. Qf3 Qb2+ 44. Kf1 Qxd4 45. Qb7+ Kd6 46. Qxh7) 40... Nxe2 $19 {[%emt 0:01:14]} 41. Qb7+ {[%emt 0:30:05]} Kf8 {[%emt 0:08:31]} 42. Qxb6 {[%emt 0:00:00]} Qd1 {[%emt 0:04:34]} 43. Kg2 {[%emt 0:00:00]} Qxd4 {[%emt 0:01:22]} 44. Qxe6 {[%emt 0:00:00]} Qe5 {[%emt 0:00:35]} 45. Qc8+ {[%emt 0:00:00]} Kf7 {[%emt 0:01:16]} 46. Qd7+ {[%emt 0:00:00]} Kg8 {[%emt 0:03:34]} 47. Qd8+ {[%emt 0:00:00]} (47. Qc8+ $142 Kg7 48. Qb7+ Kh6 49. b4) 47... Kg7 $19 {[%emt 0:00:24]} 48. Qd7+ {[%emt 0:00:00]} Kh6 {[%emt 0:01:27]} 49. Qd2+ {[%emt 0:00:00]} g5 {[%emt 0:06:00]} 50. Qd8 {[%emt 0:00:00]} Nd4 {[%emt 0:02:35]} 51. Qf8+ {[%emt 0:00:00]} Kg6 {[%emt 0:00:02]} 52. Qg8+ {[%emt 0:00:00]} Kf5 $1 {[%emt 0:00:17]} 53. Qxh7+ {[%emt 0:00:00]} Ke6 {[%emt 0:00:01]} 54. Qg8+ {[%emt 0:00:00]} Kd7 {[%emt 0:00:17]} ({Don't go for} 54... Kf5 $2 55. Qh7+ Ke6 56. Qg8+ Ke7 57. Qg7+ Ke6 58. Qg8+ $19) 55. Qa8 {[%emt 0:00:00]} Qc5 {[%emt 0:00:43]} 56. Qg8 {[%emt 0:00:00]} (56. h4 {was necessary.}) 56... Qc6+ $19 {[%emt 0:00:24]} ({But not} 56... Qf5 $2 57. Qf7+ Kd6 58. Qf8+ Ke6 59. Qe8+ Kd5 60. Qa8+ Nc6 61. Qf8 $19) 57. Kg1 {[%emt 0:00:00]} Qe6 {[%emt 0:01:05]} 58. Qh7+ {[%emt 0:00:00]} Kc6 {[%emt 0:01:02]} 59. Qd3 {[%emt 0:00:00]} Nxb3 {[%emt 0:01:10]} 60. h4 {[%emt 0:00:00]} (60. Qb5+ $142 Kd6 61. Qb6+ Ke7 62. Qa7+ Kd6 63. Qb6+ Ke7 64. Qa7+ Kd6 65. Kh2) 60... gxh4 $1 $19 {[%emt 0:01:34]} 61. gxh4 {[%emt 0:00:00]} Qg4+ {[%emt 0:01:14]} ({Not} 61... Qd5 62. Qc3+ Kd7 63. Qxf6 $19) 62. Kf1 {[%emt 0:00:00]} Nc5 {[%emt 0:01:24]} 63. Qb5+ {[%emt 0:00:00] [#]} Kd5 $1 {[%emt 0:00:03]} 64. Qxa5 {[%emt 0:00:00]} Qxh4 {[%emt 0:00:36]} 65. Qd8+ {[%emt 0:00:00]} (65. Qa8+ $142 Kc4 66. Qc6) 65... Kc4 $19 {[%emt 0:00:14]} 66. Qc7 {[%emt 0:05:19]} Qh1+ {[%emt 0:00:22]} 67. Ke2 {[%emt 0:00:01]} Qe4+ {[%emt 0:00:09]} 68. Kf1 {[%emt 0:00:05]} Qd4 $2 {[%emt 0:00:57]} (68... f5 $19 {White must now prevent ...f4.} 69. Kg1 f4) 69. a5 $17 {[%emt 0:01:01]} Qd1+ {[%emt 0:00:45]} 70. Kg2 {[%emt 0:00:01]} Qg4+ {[%emt 0:00:12]} 71. Kf1 $2 {[%emt 0:02:51]} (71. Kh2) 71... Qe6 {[%emt 0:00:12]} 72. Kg2 {[%emt 0:04:11] [#]} Kb5 $1 {[%emt 0:00:23]} 73. Qd8 $2 {[%emt 0:02:08]} (73. Kg3 Ne4+ 74. Kf4) 73... Nb7 $19 {[%emt 0:01:04]} 74. Qb8 {[%emt 0:01:11]} Qd5+ {[%emt 0:00:28]} (74... Qc6+ $142 75. Kg3 Kxa5) 75. Kg3 $2 {[%emt 0:00:14]} (75. f3) 75... Kxa5 $19 {[%emt 0:00:20]} 76. Kf4 {[%emt 0:00:46]} Qg5+ {[%emt 0:00:48]} (76... Qd6+ $142 77. Qxd6 Nxd6 78. Ke3 Kb5 79. Kf4 Kc4 80. Ke3 Kc3 81. Ke2 Kd4 82. Kf3 Ne4 83. Ke2 Nc5 84. Kf3 Nd3 85. Kg4 Ke4 86. f3+ Ke5 87. Kh4 f5 88. Kh5 f4 89. Kh4 Kd4 90. Kg5 Ke3 91. Kg4 Ke2 92. Kh4 Kxf3 93. Kg5 Ke3 94. Kh5 f3 95. Kg4 f2 96. Kf5 f1=Q+ 97. Ke6 Kd4 98. Kd7 Qf7+ 99. Kc6 Nc5 100. Kb6 Qb7+ 101. Ka5 Qa6+ 102. Kb4 Qa4#) 77. Kf3 {[%emt 0:00:04]} Nc5 {[%emt 0:00:48]} 78. Qb1 {[%emt 0:00:28]} Qh5+ {[%emt 0:00:40]} 79. Kg3 {[%emt 0:00:26]} Qe5+ {[%emt 0:00:20]} 80. f4 {[%emt 0:00:11]} (80. Kg4 $19) 80... Qe6 {[%emt 0:00:26]} (80... Ne4+ $142 81. Kg2 Qxf4 82. Qe1+ Kb6 83. Qb4+ Kc6 84. Qb3 Qg4+ 85. Kh2 Qh4+ 86. Kg2 Qg5+ 87. Kh3 Qh5+ 88. Kg2 Qg4+ 89. Kh2 Qh5+ 90. Kg1 Qe2 91. Qg8 Kc5 92. Qg2 Qd1+ 93. Kh2 Kd4 94. Qh3 Qe2+ 95. Kg1 Qe3+ 96. Kh2 Qxh3+ 97. Kxh3 f5 98. Kh4 Ke3 99. Kh5 f4 100. Kg6 f3 101. Kg7 f2 102. Kf7 f1=Q+ 103. Ke6 Kd4 104. Kd7 Nc5+ 105. Ke8 Kd5 106. Kd8 Kd6 107. Ke8 Ne4 108. Kd8 Qf8#) 81. Qb8 {[%emt 0:00:42]} f5 {[%emt 0:00:43]} 82. Kh4 {[%emt 0:01:10]} Qh6+ {[%emt 0:00:10]} 83. Kg3 {[%emt 0:00:01]} Ne4+ {[%emt 0:00:17]} 84. Kg2 {[%emt 0:00:35]} Qg6+ {[%emt 0:00:34]} 85. Kf1 {[%emt 0:00:11]} Qa6+ {[%emt 0:00:11]} 86. Ke1 {[%emt 0:00:06]} Qb5 {[%emt 0:00:49]} 87. Qa7+ {[%emt 0:00:58]} Kb4 {[%emt 0:00:17]} 88. Qd4+ {[%emt 0:00:06]} Qc4 {[%emt 0:00:54]} 89. Qb6+ {[%emt 0:01:05]} Ka4 {[%emt 0:00:31]} 90. Qd8 {[%emt 0:01:06]} Qc1+ {[%emt 0:01:40]} 91. Ke2 {[%emt 0:00:01]} Qc2+ {[%emt 0:00:29]} 92. Ke1 {[%emt 0:00:22]} Qf2+ {[%emt 0:00:28]} 93. Kd1 {[%emt 0:00:01]} Nc3+ {[%emt 0:00:39]} 94. Kc1 {[%emt 0:00:01]} Qxf4+ {[%emt 0:00:19]} 95. Kc2 {[%emt 0:00:08]} Nb5 {[%emt 0:00:26]} 96. Qf8 {[%emt 0:01:16]} Qe4+ {[%emt 0:00:23]} 97. Kb2 {[%emt 0:00:01]} Qb4+ {[%emt 0:00:13]} 0-1

[Event "FIDE Womens Grand Prix-I 2022-23"]
[Site "Nur-Sultan"]
[Date "2022.09.20"]
[Round "3.3"]
[White "Assaubayeva, Bibisara"]
[Black "Vaishali, Rameshbabu"]
[Result "1/2-1/2"]
[ECO "D94"]
[WhiteElo "2439"]
[BlackElo "2449"]
[Annotator "TA"]
[PlyCount "71"]
[EventDate "2022.09.15"]
[EventType "tourn"]
[EventCountry "KAZ"]
[SourceTitle "playchess.com"]
[Source "ChessBase"]
[SourceQuality "1"]
[TimeControl "40/5400+30:1800+30"]

{[%evp 15,71,0,6,0,10,28,14,8,17,16,12,18,29,18,16,7,46,26,26,50,31,10,0,26,35,29,22,23,32,36,30,16,23,30,68,64,72,66,62,68,60,58,64,60,65,68,72,43,60,58,61,0,0,0,0,0,0,-4]} 1. d4 {[%emt 0:00:06]} Nf6 {[%emt 0:00:36]} 2. c4 {[%emt 0:00:05]} g6 {[%emt 0:00:06]} 3. Nc3 {[%emt 0:00:06]} d5 {[%emt 0:00:03]} 4. Nf3 {[%emt 0:00:06]} Bg7 {[%emt 0:00:05]} 5. e3 {[%emt 0:00:06]} O-O {[%emt 0:00:07]} 6. cxd5 {[%emt 0:00:05]} Nxd5 {[%emt 0:00:03]} 7. Bc4 {[%emt 0:00:06]} Nb6 {[%emt 0:00:48]} 8. Bb3 {[%emt 0:00:07]} c5 {[%emt 0:00:45] BESTDEEP 8...c5 is better than 8...Nc6.} 9. O-O {[%emt 0:00:08] BESTDEEP. D94: Grünfeld: 4 Nf3 Bg7 5 e3.} Nc6 {[%emt 0:01:55][%cal Rc5d4] CPLX 2.7 10 (c5xd4) (=5)} 10. dxc5 {[%emt 0:04:30] EASY} Nd7 {[%emt 0:00:06] CPLX 3.1} 11. Na4 {[%emt 0:07:07] [#] CPLX 2.5 6 (Nc3-e4) (=2)} b5 $146 {[%emt 0:01:54] BESTDEEP} ({Predecessor:} 11... Qc7 12. Nd4 Nde5 13. Nb5 Qb8 14. Qe2 Bf5 15. e4 a6 16. Nbc3 Nd4 17. Qe3 Be6 {0-1 (40) Harari,Z-Cornelius,P San Francisco 1978}) 12. cxb6 $1 {[%emt 0:00:58] CPLX 2.8} axb6 {[%emt 0:00:31] RECAPT} 13. Qc2 {[%emt 0:17:06] CPLX 2.7 0 (Qd1-d5) (=1)} Na5 {[%emt 0:26:05] BESTDEEP} 14. Rd1 {[%emt 0:12:11] CPLX 2.9} b5 {[%emt 0:05:30] BESTDEEP} 15. Nc3 {[%emt 0:06:16] CPLX 3.6} Bb7 {[%emt 0:33:43] CPLX 3.2 39 (b5-b4) (=6)} 16. Bd5 {[%emt 0:10:35] With the idea Bxb7. CPLX 3.4 20 (e3-e4) (=3)} Qc8 {[%emt 0:03:53] BESTDEEP} 17. Bxb7 {[%emt 0:05:11] CPLX 3.2} Qxb7 {[%emt 0:00:03] RECAPT} 18. Qe4 {[%emt 0:04:14] [#] Hoping for Qxb7. CPLX 2.6 21 (a2-a3) (=5)} Qxe4 {[%emt 0:06:40] CPLX 2.8 0 (Bg7xc3) (=4)} 19. Nxe4 {[%emt 0:00:02] RECAPT} Nb6 {[%emt 0:00:05] CPLX 2.2 9 (Nd7-f6) (=5)} 20. Rb1 {[%emt 0:02:48] CPLX 2.1} Nc6 {[%emt 0:04:26] CPLX 2.1 0 (Ra8-d8) (=4)} 21. a3 {[%emt 0:01:05] CPLX 2.0} Nc4 {[%emt 0:00:20] CPLX 2.0 9 (Rf8-b8) (=5)} 22. Kf1 {[%emt 0:02:54] CPLX 2.2 0 (h2-h3) (=3)} Rfb8 {[%emt 0:01:52] CPLX 2.3 0 (Rf8-c8) (=4)} 23. Nfd2 {[%emt 0:05:47] BESTDEEP} N6e5 {[%emt 0:02:01] BESTDEEP} 24. Ke2 {[%emt 0:01:28] CPLX 2.4 0 (Nd2-b3) (=3)} b4 {[%emt 0:07:08] CPLX 2.8 38 (e7-e6) (=6)} 25. f4 {[%emt 0:04:47] EASY} bxa3 {[%emt 0:01:51] CPLX 3.8} 26. fxe5 {[%emt 0:05:23] EASY} a2 {[%emt 0:00:02] EASY} 27. Ra1 {[%emt 0:00:07] EASY} Nxb2 {[%emt 0:00:04] BESTDEEP} 28. Bxb2 {[%emt 0:03:48] RECAPT} Rxb2 {[%emt 0:00:03] RECAPT} 29. Nc5 {[%emt 0:04:10] CPLX 3.3 4 (Ne4-f2) (=2)} Rc2 {[%emt 0:02:21] CPLX 3.4 5 (Ra8-a3) (=5)} 30. Nd3 {[%emt 0:00:02] CPLX 3.6} Ra3 {[%emt 0:00:05] CPLX 3.3} 31. h3 {[%emt 0:01:33] CPLX 3.5 29 (Rd1-c1) (=3)} (31. Rdc1 $5 {[%cal Rc1c2]} Bxe5 32. Rxc2 (32. Nxe5 Rxc1 33. Rxc1 a1=Q $11) 32... Bxa1 33. Nc1 $16 (33. Rc1 $2 Bc3 $19)) 31... f5 {[%emt 0:01:09] CPLX 3.5 17 (Bg7-h6) (=5)} 32. Rdc1 {[%emt 0:00:48] CPLX 3.5 2 (Nd3-b4) (=3)} Bxe5 $1 {[%emt 0:00:23] [#] Strongly threatening ...Rxc1. DEEPSTRONG} (32... Rxc1 $2 33. Nxc1 Rc3 34. Nxa2 $18) 33. Nxe5 {[%emt 0:02:36] MISSDEEP-Rc1xc2 61 (Rc1xc2) (=6)} ({White should play} 33. Rxc2 $14 Bxa1 34. Nb4 (34. Rc1 $2 Bc3 $19)) 33... Rxc1 $11 {[%emt 0:00:04] EASY. The position is equal.} 34. Rxc1 {[%emt 0:00:03] aiming for Ra1. RECAPT} a1=Q {[%emt 0:00:07] CPLX 3.3} 35. Rxa1 {[%emt 0:00:08] EASY} Rxa1 {[%emt 0:00:03] RECAPT} 36. Ndf3 {[%emt 0:01:02] Weighted Error Value: White=0.07 (flawless) /Black=0.06 (flawless)} 1/2-1/2